{"text_format":"1","workbook":"xlsx","n_sheets":31,"sheets":["Oppsummering","K1","K2","K3","K4","K5","K6","K7","K8","K9","K10","K11","K12","K13","K14","K15","K16","K17","K18","K19","K20","K21","K22","K23","K24","K25","K26","K27","K28","K29","K30"],"not_rendered":{"charts":0,"images":0,"macros":1,"external_links":0,"defined_names":31,"comments":0,"pivot_tables":0},"unopened":[],"bounds":{"document_bytes":16777216,"sheet_cells":100000,"rows_first":2000,"rows_last":500,"rows_between":2000,"halvings":0,"cell_chars":16384,"cell_head_chars":4096},"cells_cut":0,"cells_raw":0,"read":"whole","date_system":"1900"}

{"sheet":"Oppsummering","index":0,"n_rows":31,"n_cols":5,"rows_kept":31,"cut":false,"hidden":false,"merged":[]}
[null,"Kand. nr","Poeng","Eget karakterforslag","Kommentarer"]
["K1",{"$f":"'K1'!$B$6","v":0},{"$f":"'K1'!$AC$7","v":0},{"$f":"'K1'!$E$18","v":0},{"$f":"'K1'!Kommentarer","v":0}]
["K2",{"$f":"'K2'!$B$6","v":0},{"$f":"'K2'!$AC$7","v":0},{"$f":"'K2'!$E$18","v":0},{"$f":"'K2'!Kommentarer","v":0}]
["K3",{"$f":"'K3'!$B$6","v":0},{"$f":"'K3'!$AC$7","v":0},{"$f":"'K3'!$E$18","v":0},{"$f":"'K3'!Kommentarer","v":0}]
["K4",{"$f":"'K4'!$B$6","v":0},{"$f":"'K4'!$AC$7","v":0},{"$f":"'K4'!$E$18","v":0},{"$f":"'K4'!Kommentarer","v":0}]
["K5",{"$f":"'K5'!$B$6","v":0},{"$f":"'K5'!$AC$7","v":0},{"$f":"'K5'!$E$18","v":0},{"$f":"'K5'!Kommentarer","v":0}]
["K6",{"$f":"'K6'!$B$6","v":0},{"$f":"'K6'!$AC$7","v":0},{"$f":"'K6'!$E$18","v":0},{"$f":"'K6'!Kommentarer","v":0}]
["K7",{"$f":"'K7'!$B$6","v":0},{"$f":"'K7'!$AC$7","v":0},{"$f":"'K7'!$E$18","v":0},{"$f":"'K7'!Kommentarer","v":0}]
["K8",{"$f":"'K8'!$B$6","v":0},{"$f":"'K8'!$AC$7","v":0},{"$f":"'K8'!$E$18","v":0},{"$f":"'K8'!Kommentarer","v":0}]
["K9",{"$f":"'K9'!$B$6","v":0},{"$f":"'K9'!$AC$7","v":0},{"$f":"'K9'!$E$18","v":0},{"$f":"'K9'!Kommentarer","v":0}]
["K10",{"$f":"'K10'!$B$6","v":0},{"$f":"'K10'!$AC$7","v":0},{"$f":"'K10'!$E$18","v":0},{"$f":"'K10'!Kommentarer","v":0}]
["K11",{"$f":"'K11'!$B$6","v":0},{"$f":"'K11'!$AC$7","v":0},{"$f":"'K11'!$E$18","v":0},{"$f":"'K11'!Kommentarer","v":0}]
["K12",{"$f":"'K12'!$B$6","v":0},{"$f":"'K12'!$AC$7","v":0},{"$f":"'K12'!$E$18","v":0},{"$f":"'K12'!Kommentarer","v":0}]
["K13",{"$f":"'K13'!$B$6","v":0},{"$f":"'K13'!$AC$7","v":0},{"$f":"'K13'!$E$18","v":0},{"$f":"'K13'!Kommentarer","v":0}]
["K14",{"$f":"'K14'!$B$6","v":0},{"$f":"'K14'!$AC$7","v":0},{"$f":"'K14'!$E$18","v":0},{"$f":"'K14'!Kommentarer","v":0}]
["K15",{"$f":"'K15'!$B$6","v":0},{"$f":"'K15'!$AC$7","v":0},{"$f":"'K15'!$E$18","v":0},{"$f":"'K15'!Kommentarer","v":0}]
["K16",{"$f":"'K16'!$B$6","v":0},{"$f":"'K16'!$AC$7","v":0},{"$f":"'K16'!$E$18","v":0},{"$f":"'K16'!Kommentarer","v":0}]
["K17",{"$f":"'K17'!$B$6","v":0},{"$f":"'K17'!$AC$7","v":0},{"$f":"'K17'!$E$18","v":0},{"$f":"'K17'!Kommentarer","v":0}]
["K18",{"$f":"'K18'!$B$6","v":0},{"$f":"'K18'!$AC$7","v":0},{"$f":"'K18'!$E$18","v":0},{"$f":"'K18'!Kommentarer","v":0}]
["K19",{"$f":"'K19'!$B$6","v":0},{"$f":"'K19'!$AC$7","v":0},{"$f":"'K19'!$E$18","v":0},{"$f":"'K19'!Kommentarer","v":0}]
["K20",{"$f":"'K20'!$B$6","v":0},{"$f":"'K20'!$AC$7","v":0},{"$f":"'K20'!$E$18","v":0},{"$f":"'K20'!Kommentarer","v":0}]
["K21",{"$f":"'K21'!$B$6","v":0},{"$f":"'K21'!$AC$7","v":0},{"$f":"'K21'!$E$18","v":0},{"$f":"'K21'!Kommentarer","v":0}]
["K22",{"$f":"'K22'!$B$6","v":0},{"$f":"'K22'!$AC$7","v":0},{"$f":"'K22'!$E$18","v":0},{"$f":"'K22'!Kommentarer","v":0}]
["K23",{"$f":"'K23'!$B$6","v":0},{"$f":"'K23'!$AC$7","v":0},{"$f":"'K23'!$E$18","v":0},{"$f":"'K23'!Kommentarer","v":0}]
["K24",{"$f":"'K24'!$B$6","v":0},{"$f":"'K24'!$AC$7","v":0},{"$f":"'K24'!$E$18","v":0},{"$f":"'K24'!Kommentarer","v":0}]
["K25",{"$f":"'K25'!$B$6","v":0},{"$f":"'K25'!$AC$7","v":0},{"$f":"'K25'!$E$18","v":0},{"$f":"'K25'!Kommentarer","v":0}]
["K26",{"$f":"'K26'!$B$6","v":0},{"$f":"'K26'!$AC$7","v":0},{"$f":"'K26'!$E$18","v":0},{"$f":"'K26'!Kommentarer","v":0}]
["K27",{"$f":"'K27'!$B$6","v":0},{"$f":"'K27'!$AC$7","v":0},{"$f":"'K27'!$E$18","v":0},{"$f":"'K27'!Kommentarer","v":0}]
["K28",{"$f":"'K28'!$B$6","v":0},{"$f":"'K28'!$AC$7","v":0},{"$f":"'K28'!$E$18","v":0},{"$f":"'K28'!Kommentarer","v":0}]
["K29",{"$f":"'K29'!$B$6","v":0},{"$f":"'K29'!$AC$7","v":0},{"$f":"'K29'!$E$18","v":0},{"$f":"'K29'!Kommentarer","v":0}]
["K30",{"$f":"'K30'!$B$6","v":0},{"$f":"'K30'!$AC$7","v":0},{"$f":"'K30'!$E$18","v":0},{"$f":"'K30'!Kommentarer","v":0}]

{"sheet":"K1","index":1,"n_rows":20,"n_cols":29,"rows_kept":20,"cut":false,"hidden":false,"merged":[[4,2,6,2],[0,1,0,24],[0,25,0,28],[18,1,18,3],[11,1,11,3],[12,1,12,3],[12,7,19,28],[13,1,13,3],[14,1,14,3],[17,1,17,3]]}
[null,"VURDERINGSSKJEMA for sentralt gitt skriftlig eksamen i MAT1015 Matematikk 2P                           ",null,null,null,null,null,null,null,null,null,null,null,null,null,null,null,null,null,null,null,null,null,null,null,"Våren 2015"]
[]
[null,"Fagkode:","MAT1015",null,"Fagnavn:",null,"Matematikk 2P",null,null,null,"Skole:",null,null,null,null,null,null,null,"Gruppe:",null,null,null,null,null,"Sensor:"]
[]
[null,"Kand.nr:","Del 1","Oppgave",1,2,"3a","3b","4a","4b","5a","5b","6a","6b","6c","7a","7b","7c",8,null,null,null,null,null,null,null,null,"SUM \nDEL 1"]
[null,null,null,"Poeng",2,1,1,1,1,1,1,1,2,2,2,2,2,2,3,null,null,null,null,null,null,null,null,{"$f":"SUM(E6:S6)","v":24},"TOTALT"]
[null,null,null,"Sensors\npoeng",null,null,null,null,null,null,null,null,null,null,null,null,null,null,null,null,null,null,null,null,null,null,null,{"$f":"SUM(E7:S7)","v":0},{"$f":"AB7+AB10","v":0}]
[null,null,"Del 2","Oppgave",1,"2a","2b","2c","3a","3b","4a","4b","4c","4d","5a","5b","5c","5d","6a","6b","6c","7a","7b","7c",null,null,null,"SUM \nDEL 2","AV"]
[null,null,null,"Poeng",4,2,1,1,2,1,1,2,2,2,2,1,1,2,2,2,2,2,2,2,null,null,null,{"$f":"SUM(E9:X9)","v":36},{"$f":"AB6+AB9","v":60}]
[null,null,null,"Sensors\npoeng",null,null,null,null,null,null,null,null,null,null,null,null,null,null,null,null,null,null,null,null,null,null,null,{"$f":"SUM(E10:X10)","v":0}]
[null,"SAMLET VURDERING (Jfr. Eksamensveiledning 2015 med kjennetegn på måloppnåelse)"]
[null,"Kompetanse",null,null,2,"3/4","5/6","Kommentarer:"]
[null,"Begreper/ferdigheter"]
[null,"Problemløsning"]
[null,"Kommunikasjon"]
[]
[null,"Karakterforslag"]
[null,"Eget karakterforslag"]
[null,"Medsensors forslag"]
[null,"Endelig karakter"]

{"sheet":"K2","index":2,"n_rows":20,"n_cols":29,"rows_kept":20,"cut":false,"hidden":false,"merged":[[0,1,0,24],[0,25,0,28],[4,2,6,2],[11,1,11,3],[12,1,12,3],[12,7,19,28],[13,1,13,3],[14,1,14,3],[17,1,17,3],[18,1,18,3]]}
[null,"VURDERINGSSKJEMA for sentralt gitt skriftlig eksamen i MAT1015 Matematikk 2P                           ",null,null,null,null,null,null,null,null,null,null,null,null,null,null,null,null,null,null,null,null,null,null,null,"Våren 2015"]
[]
[null,"Fagkode:","MAT1015",null,"Fagnavn:",null,"Matematikk 2P",null,null,null,"Skole:",null,null,null,null,null,null,null,"Gruppe:",null,null,null,null,null,"Sensor:"]
[]
[null,"Kand.nr:","Del 1","Oppgave",1,2,"3a","3b","4a","4b","5a","5b","6a","6b","6c","7a","7b","7c",8,null,null,null,null,null,null,null,null,"SUM \nDEL 1"]
[null,null,null,"Poeng",2,1,1,1,1,1,1,1,2,2,2,2,2,2,3,null,null,null,null,null,null,null,null,{"$f":"SUM(E6:S6)","v":24},"TOTALT"]
[null,null,null,"Sensors\npoeng",null,null,null,null,null,null,null,null,null,null,null,null,null,null,null,null,null,null,null,null,null,null,null,{"$f":"SUM(E7:S7)","v":0},{"$f":"AB7+AB10","v":0}]
[null,null,"Del 2","Oppgave",1,"2a","2b","2c","3a","3b","4a","4b","4c","4d","5a","5b","5c","5d","6a","6b","6c","7a","7b","7c",null,null,null,"SUM \nDEL 2","AV"]
[null,null,null,"Poeng",4,2,1,1,2,1,1,2,2,2,2,1,1,2,2,2,2,2,2,2,null,null,null,{"$f":"SUM(E9:X9)","v":36},{"$f":"AB6+AB9","v":60}]
[null,null,null,"Sensors\npoeng",null,null,null,null,null,null,null,null,null,null,null,null,null,null,null,null,null,null,null,null,null,null,null,{"$f":"SUM(E10:X10)","v":0}]
[null,"SAMLET VURDERING (Jfr. Eksamensveiledning 2015 med kjennetegn på måloppnåelse)"]
[null,"Kompetanse",null,null,2,"3/4","5/6","Kommentarer:"]
[null,"Begreper/ferdigheter"]
[null,"Problemløsning"]
[null,"Kommunikasjon"]
[]
[null,"Karakterforslag"]
[null,"Eget karakterforslag"]
[null,"Medsensors forslag"]
[null,"Endelig karakter"]

{"sheet":"K3","index":3,"n_rows":20,"n_cols":29,"rows_kept":20,"cut":false,"hidden":false,"merged":[[0,1,0,24],[0,25,0,28],[4,2,6,2],[11,1,11,3],[12,1,12,3],[12,7,19,28],[13,1,13,3],[14,1,14,3],[17,1,17,3],[18,1,18,3]]}
[null,"VURDERINGSSKJEMA for sentralt gitt skriftlig eksamen i MAT1015 Matematikk 2P                           ",null,null,null,null,null,null,null,null,null,null,null,null,null,null,null,null,null,null,null,null,null,null,null,"Våren 2015"]
[]
[null,"Fagkode:","MAT1015",null,"Fagnavn:",null,"Matematikk 2P",null,null,null,"Skole:",null,null,null,null,null,null,null,"Gruppe:",null,null,null,null,null,"Sensor:"]
[]
[null,"Kand.nr:","Del 1","Oppgave",1,2,"3a","3b","4a","4b","5a","5b","6a","6b","6c","7a","7b","7c",8,null,null,null,null,null,null,null,null,"SUM \nDEL 1"]
[null,null,null,"Poeng",2,1,1,1,1,1,1,1,2,2,2,2,2,2,3,null,null,null,null,null,null,null,null,{"$f":"SUM(E6:S6)","v":24},"TOTALT"]
[null,null,null,"Sensors\npoeng",null,null,null,null,null,null,null,null,null,null,null,null,null,null,null,null,null,null,null,null,null,null,null,{"$f":"SUM(E7:S7)","v":0},{"$f":"AB7+AB10","v":0}]
[null,null,"Del 2","Oppgave",1,"2a","2b","2c","3a","3b","4a","4b","4c","4d","5a","5b","5c","5d","6a","6b","6c","7a","7b","7c",null,null,null,"SUM \nDEL 2","AV"]
[null,null,null,"Poeng",4,2,1,1,2,1,1,2,2,2,2,1,1,2,2,2,2,2,2,2,null,null,null,{"$f":"SUM(E9:X9)","v":36},{"$f":"AB6+AB9","v":60}]
[null,null,null,"Sensors\npoeng",null,null,null,null,null,null,null,null,null,null,null,null,null,null,null,null,null,null,null,null,null,null,null,{"$f":"SUM(E10:X10)","v":0}]
[null,"SAMLET VURDERING (Jfr. Eksamensveiledning 2015 med kjennetegn på måloppnåelse)"]
[null,"Kompetanse",null,null,2,"3/4","5/6","Kommentarer:"]
[null,"Begreper/ferdigheter"]
[null,"Problemløsning"]
[null,"Kommunikasjon"]
[]
[null,"Karakterforslag"]
[null,"Eget karakterforslag"]
[null,"Medsensors forslag"]
[null,"Endelig karakter"]

{"sheet":"K4","index":4,"n_rows":20,"n_cols":29,"rows_kept":20,"cut":false,"hidden":false,"merged":[[0,1,0,24],[0,25,0,28],[4,2,6,2],[11,1,11,3],[12,1,12,3],[12,7,19,28],[13,1,13,3],[14,1,14,3],[17,1,17,3],[18,1,18,3]]}
[null,"VURDERINGSSKJEMA for sentralt gitt skriftlig eksamen i MAT1015 Matematikk 2P                           ",null,null,null,null,null,null,null,null,null,null,null,null,null,null,null,null,null,null,null,null,null,null,null,"Våren 2015"]
[]
[null,"Fagkode:","MAT1015",null,"Fagnavn:",null,"Matematikk 2P",null,null,null,"Skole:",null,null,null,null,null,null,null,"Gruppe:",null,null,null,null,null,"Sensor:"]
[]
[null,"Kand.nr:","Del 1","Oppgave",1,2,"3a","3b","4a","4b","5a","5b","6a","6b","6c","7a","7b","7c",8,null,null,null,null,null,null,null,null,"SUM \nDEL 1"]
[null,null,null,"Poeng",2,1,1,1,1,1,1,1,2,2,2,2,2,2,3,null,null,null,null,null,null,null,null,{"$f":"SUM(E6:S6)","v":24},"TOTALT"]
[null,null,null,"Sensors\npoeng",null,null,null,null,null,null,null,null,null,null,null,null,null,null,null,null,null,null,null,null,null,null,null,{"$f":"SUM(E7:S7)","v":0},{"$f":"AB7+AB10","v":0}]
[null,null,"Del 2","Oppgave",1,"2a","2b","2c","3a","3b","4a","4b","4c","4d","5a","5b","5c","5d","6a","6b","6c","7a","7b","7c",null,null,null,"SUM \nDEL 2","AV"]
[null,null,null,"Poeng",4,2,1,1,2,1,1,2,2,2,2,1,1,2,2,2,2,2,2,2,null,null,null,{"$f":"SUM(E9:X9)","v":36},{"$f":"AB6+AB9","v":60}]
[null,null,null,"Sensors\npoeng",null,null,null,null,null,null,null,null,null,null,null,null,null,null,null,null,null,null,null,null,null,null,null,{"$f":"SUM(E10:X10)","v":0}]
[null,"SAMLET VURDERING (Jfr. Eksamensveiledning 2015 med kjennetegn på måloppnåelse)"]
[null,"Kompetanse",null,null,2,"3/4","5/6","Kommentarer:"]
[null,"Begreper/ferdigheter"]
[null,"Problemløsning"]
[null,"Kommunikasjon"]
[]
[null,"Karakterforslag"]
[null,"Eget karakterforslag"]
[null,"Medsensors forslag"]
[null,"Endelig karakter"]

{"sheet":"K5","index":5,"n_rows":20,"n_cols":29,"rows_kept":20,"cut":false,"hidden":false,"merged":[[0,1,0,24],[0,25,0,28],[4,2,6,2],[11,1,11,3],[12,1,12,3],[12,7,19,28],[13,1,13,3],[14,1,14,3],[17,1,17,3],[18,1,18,3]]}
[null,"VURDERINGSSKJEMA for sentralt gitt skriftlig eksamen i MAT1015 Matematikk 2P                           ",null,null,null,null,null,null,null,null,null,null,null,null,null,null,null,null,null,null,null,null,null,null,null,"Våren 2015"]
[]
[null,"Fagkode:","MAT1015",null,"Fagnavn:",null,"Matematikk 2P",null,null,null,"Skole:",null,null,null,null,null,null,null,"Gruppe:",null,null,null,null,null,"Sensor:"]
[]
[null,"Kand.nr:","Del 1","Oppgave",1,2,"3a","3b","4a","4b","5a","5b","6a","6b","6c","7a","7b","7c",8,null,null,null,null,null,null,null,null,"SUM \nDEL 1"]
[null,null,null,"Poeng",2,1,1,1,1,1,1,1,2,2,2,2,2,2,3,null,null,null,null,null,null,null,null,{"$f":"SUM(E6:S6)","v":24},"TOTALT"]
[null,null,null,"Sensors\npoeng",null,null,null,null,null,null,null,null,null,null,null,null,null,null,null,null,null,null,null,null,null,null,null,{"$f":"SUM(E7:S7)","v":0},{"$f":"AB7+AB10","v":0}]
[null,null,"Del 2","Oppgave",1,"2a","2b","2c","3a","3b","4a","4b","4c","4d","5a","5b","5c","5d","6a","6b","6c","7a","7b","7c",null,null,null,"SUM \nDEL 2","AV"]
[null,null,null,"Poeng",4,2,1,1,2,1,1,2,2,2,2,1,1,2,2,2,2,2,2,2,null,null,null,{"$f":"SUM(E9:X9)","v":36},{"$f":"AB6+AB9","v":60}]
[null,null,null,"Sensors\npoeng",null,null,null,null,null,null,null,null,null,null,null,null,null,null,null,null,null,null,null,null,null,null,null,{"$f":"SUM(E10:X10)","v":0}]
[null,"SAMLET VURDERING (Jfr. Eksamensveiledning 2015 med kjennetegn på måloppnåelse)"]
[null,"Kompetanse",null,null,2,"3/4","5/6","Kommentarer:"]
[null,"Begreper/ferdigheter"]
[null,"Problemløsning"]
[null,"Kommunikasjon"]
[]
[null,"Karakterforslag"]
[null,"Eget karakterforslag"]
[null,"Medsensors forslag"]
[null,"Endelig karakter"]

{"sheet":"K6","index":6,"n_rows":20,"n_cols":29,"rows_kept":20,"cut":false,"hidden":false,"merged":[[0,1,0,24],[0,25,0,28],[4,2,6,2],[11,1,11,3],[12,1,12,3],[12,7,19,28],[13,1,13,3],[14,1,14,3],[17,1,17,3],[18,1,18,3]]}
[null,"VURDERINGSSKJEMA for sentralt gitt skriftlig eksamen i MAT1015 Matematikk 2P                           ",null,null,null,null,null,null,null,null,null,null,null,null,null,null,null,null,null,null,null,null,null,null,null,"Våren 2015"]
[]
[null,"Fagkode:","MAT1015",null,"Fagnavn:",null,"Matematikk 2P",null,null,null,"Skole:",null,null,null,null,null,null,null,"Gruppe:",null,null,null,null,null,"Sensor:"]
[]
[null,"Kand.nr:","Del 1","Oppgave",1,2,"3a","3b","4a","4b","5a","5b","6a","6b","6c","7a","7b","7c",8,null,null,null,null,null,null,null,null,"SUM \nDEL 1"]
[null,null,null,"Poeng",2,1,1,1,1,1,1,1,2,2,2,2,2,2,3,null,null,null,null,null,null,null,null,{"$f":"SUM(E6:S6)","v":24},"TOTALT"]
[null,null,null,"Sensors\npoeng",null,null,null,null,null,null,null,null,null,null,null,null,null,null,null,null,null,null,null,null,null,null,null,{"$f":"SUM(E7:S7)","v":0},{"$f":"AB7+AB10","v":0}]
[null,null,"Del 2","Oppgave",1,"2a","2b","2c","3a","3b","4a","4b","4c","4d","5a","5b","5c","5d","6a","6b","6c","7a","7b","7c",null,null,null,"SUM \nDEL 2","AV"]
[null,null,null,"Poeng",4,2,1,1,2,1,1,2,2,2,2,1,1,2,2,2,2,2,2,2,null,null,null,{"$f":"SUM(E9:X9)","v":36},{"$f":"AB6+AB9","v":60}]
[null,null,null,"Sensors\npoeng",null,null,null,null,null,null,null,null,null,null,null,null,null,null,null,null,null,null,null,null,null,null,null,{"$f":"SUM(E10:X10)","v":0}]
[null,"SAMLET VURDERING (Jfr. Eksamensveiledning 2015 med kjennetegn på måloppnåelse)"]
[null,"Kompetanse",null,null,2,"3/4","5/6","Kommentarer:"]
[null,"Begreper/ferdigheter"]
[null,"Problemløsning"]
[null,"Kommunikasjon"]
[]
[null,"Karakterforslag"]
[null,"Eget karakterforslag"]
[null,"Medsensors forslag"]
[null,"Endelig karakter"]

{"sheet":"K7","index":7,"n_rows":20,"n_cols":29,"rows_kept":20,"cut":false,"hidden":false,"merged":[[0,1,0,24],[0,25,0,28],[4,2,6,2],[11,1,11,3],[12,1,12,3],[12,7,19,28],[13,1,13,3],[14,1,14,3],[17,1,17,3],[18,1,18,3]]}
[null,"VURDERINGSSKJEMA for sentralt gitt skriftlig eksamen i MAT1015 Matematikk 2P                           ",null,null,null,null,null,null,null,null,null,null,null,null,null,null,null,null,null,null,null,null,null,null,null,"Våren 2015"]
[]
[null,"Fagkode:","MAT1015",null,"Fagnavn:",null,"Matematikk 2P",null,null,null,"Skole:",null,null,null,null,null,null,null,"Gruppe:",null,null,null,null,null,"Sensor:"]
[]
[null,"Kand.nr:","Del 1","Oppgave",1,2,"3a","3b","4a","4b","5a","5b","6a","6b","6c","7a","7b","7c",8,null,null,null,null,null,null,null,null,"SUM \nDEL 1"]
[null,null,null,"Poeng",2,1,1,1,1,1,1,1,2,2,2,2,2,2,3,null,null,null,null,null,null,null,null,{"$f":"SUM(E6:S6)","v":24},"TOTALT"]
[null,null,null,"Sensors\npoeng",null,null,null,null,null,null,null,null,null,null,null,null,null,null,null,null,null,null,null,null,null,null,null,{"$f":"SUM(E7:S7)","v":0},{"$f":"AB7+AB10","v":0}]
[null,null,"Del 2","Oppgave",1,"2a","2b","2c","3a","3b","4a","4b","4c","4d","5a","5b","5c","5d","6a","6b","6c","7a","7b","7c",null,null,null,"SUM \nDEL 2","AV"]
[null,null,null,"Poeng",4,2,1,1,2,1,1,2,2,2,2,1,1,2,2,2,2,2,2,2,null,null,null,{"$f":"SUM(E9:X9)","v":36},{"$f":"AB6+AB9","v":60}]
[null,null,null,"Sensors\npoeng",null,null,null,null,null,null,null,null,null,null,null,null,null,null,null,null,null,null,null,null,null,null,null,{"$f":"SUM(E10:X10)","v":0}]
[null,"SAMLET VURDERING (Jfr. Eksamensveiledning 2015 med kjennetegn på måloppnåelse)"]
[null,"Kompetanse",null,null,2,"3/4","5/6","Kommentarer:"]
[null,"Begreper/ferdigheter"]
[null,"Problemløsning"]
[null,"Kommunikasjon"]
[]
[null,"Karakterforslag"]
[null,"Eget karakterforslag"]
[null,"Medsensors forslag"]
[null,"Endelig karakter"]

{"sheet":"K8","index":8,"n_rows":20,"n_cols":29,"rows_kept":20,"cut":false,"hidden":false,"merged":[[0,1,0,24],[0,25,0,28],[4,2,6,2],[11,1,11,3],[12,1,12,3],[12,7,19,28],[13,1,13,3],[14,1,14,3],[17,1,17,3],[18,1,18,3]]}
[null,"VURDERINGSSKJEMA for sentralt gitt skriftlig eksamen i MAT1015 Matematikk 2P                           ",null,null,null,null,null,null,null,null,null,null,null,null,null,null,null,null,null,null,null,null,null,null,null,"Våren 2015"]
[]
[null,"Fagkode:","MAT1015",null,"Fagnavn:",null,"Matematikk 2P",null,null,null,"Skole:",null,null,null,null,null,null,null,"Gruppe:",null,null,null,null,null,"Sensor:"]
[]
[null,"Kand.nr:","Del 1","Oppgave",1,2,"3a","3b","4a","4b","5a","5b","6a","6b","6c","7a","7b","7c",8,null,null,null,null,null,null,null,null,"SUM \nDEL 1"]
[null,null,null,"Poeng",2,1,1,1,1,1,1,1,2,2,2,2,2,2,3,null,null,null,null,null,null,null,null,{"$f":"SUM(E6:S6)","v":24},"TOTALT"]
[null,null,null,"Sensors\npoeng",null,null,null,null,null,null,null,null,null,null,null,null,null,null,null,null,null,null,null,null,null,null,null,{"$f":"SUM(E7:S7)","v":0},{"$f":"AB7+AB10","v":0}]
[null,null,"Del 2","Oppgave",1,"2a","2b","2c","3a","3b","4a","4b","4c","4d","5a","5b","5c","5d","6a","6b","6c","7a","7b","7c",null,null,null,"SUM \nDEL 2","AV"]
[null,null,null,"Poeng",4,2,1,1,2,1,1,2,2,2,2,1,1,2,2,2,2,2,2,2,null,null,null,{"$f":"SUM(E9:X9)","v":36},{"$f":"AB6+AB9","v":60}]
[null,null,null,"Sensors\npoeng",null,null,null,null,null,null,null,null,null,null,null,null,null,null,null,null,null,null,null,null,null,null,null,{"$f":"SUM(E10:X10)","v":0}]
[null,"SAMLET VURDERING (Jfr. Eksamensveiledning 2015 med kjennetegn på måloppnåelse)"]
[null,"Kompetanse",null,null,2,"3/4","5/6","Kommentarer:"]
[null,"Begreper/ferdigheter"]
[null,"Problemløsning"]
[null,"Kommunikasjon"]
[]
[null,"Karakterforslag"]
[null,"Eget karakterforslag"]
[null,"Medsensors forslag"]
[null,"Endelig karakter"]

{"sheet":"K9","index":9,"n_rows":20,"n_cols":29,"rows_kept":20,"cut":false,"hidden":false,"merged":[[0,1,0,24],[0,25,0,28],[4,2,6,2],[11,1,11,3],[12,1,12,3],[12,7,19,28],[13,1,13,3],[14,1,14,3],[17,1,17,3],[18,1,18,3]]}
[null,"VURDERINGSSKJEMA for sentralt gitt skriftlig eksamen i MAT1015 Matematikk 2P                           ",null,null,null,null,null,null,null,null,null,null,null,null,null,null,null,null,null,null,null,null,null,null,null,"Våren 2015"]
[]
[null,"Fagkode:","MAT1015",null,"Fagnavn:",null,"Matematikk 2P",null,null,null,"Skole:",null,null,null,null,null,null,null,"Gruppe:",null,null,null,null,null,"Sensor:"]
[]
[null,"Kand.nr:","Del 1","Oppgave",1,2,"3a","3b","4a","4b","5a","5b","6a","6b","6c","7a","7b","7c",8,null,null,null,null,null,null,null,null,"SUM \nDEL 1"]
[null,null,null,"Poeng",2,1,1,1,1,1,1,1,2,2,2,2,2,2,3,null,null,null,null,null,null,null,null,{"$f":"SUM(E6:S6)","v":24},"TOTALT"]
[null,null,null,"Sensors\npoeng",null,null,null,null,null,null,null,null,null,null,null,null,null,null,null,null,null,null,null,null,null,null,null,{"$f":"SUM(E7:S7)","v":0},{"$f":"AB7+AB10","v":0}]
[null,null,"Del 2","Oppgave",1,"2a","2b","2c","3a","3b","4a","4b","4c","4d","5a","5b","5c","5d","6a","6b","6c","7a","7b","7c",null,null,null,"SUM \nDEL 2","AV"]
[null,null,null,"Poeng",4,2,1,1,2,1,1,2,2,2,2,1,1,2,2,2,2,2,2,2,null,null,null,{"$f":"SUM(E9:X9)","v":36},{"$f":"AB6+AB9","v":60}]
[null,null,null,"Sensors\npoeng",null,null,null,null,null,null,null,null,null,null,null,null,null,null,null,null,null,null,null,null,null,null,null,{"$f":"SUM(E10:X10)","v":0}]
[null,"SAMLET VURDERING (Jfr. Eksamensveiledning 2015 med kjennetegn på måloppnåelse)"]
[null,"Kompetanse",null,null,2,"3/4","5/6","Kommentarer:"]
[null,"Begreper/ferdigheter"]
[null,"Problemløsning"]
[null,"Kommunikasjon"]
[]
[null,"Karakterforslag"]
[null,"Eget karakterforslag"]
[null,"Medsensors forslag"]
[null,"Endelig karakter"]

{"sheet":"K10","index":10,"n_rows":20,"n_cols":29,"rows_kept":20,"cut":false,"hidden":false,"merged":[[0,1,0,24],[0,25,0,28],[4,2,6,2],[11,1,11,3],[12,1,12,3],[12,7,19,28],[13,1,13,3],[14,1,14,3],[17,1,17,3],[18,1,18,3]]}
[null,"VURDERINGSSKJEMA for sentralt gitt skriftlig eksamen i MAT1015 Matematikk 2P                           ",null,null,null,null,null,null,null,null,null,null,null,null,null,null,null,null,null,null,null,null,null,null,null,"Våren 2015"]
[]
[null,"Fagkode:","MAT1015",null,"Fagnavn:",null,"Matematikk 2P",null,null,null,"Skole:",null,null,null,null,null,null,null,"Gruppe:",null,null,null,null,null,"Sensor:"]
[]
[null,"Kand.nr:","Del 1","Oppgave",1,2,"3a","3b","4a","4b","5a","5b","6a","6b","6c","7a","7b","7c",8,null,null,null,null,null,null,null,null,"SUM \nDEL 1"]
[null,null,null,"Poeng",2,1,1,1,1,1,1,1,2,2,2,2,2,2,3,null,null,null,null,null,null,null,null,{"$f":"SUM(E6:S6)","v":24},"TOTALT"]
[null,null,null,"Sensors\npoeng",null,null,null,null,null,null,null,null,null,null,null,null,null,null,null,null,null,null,null,null,null,null,null,{"$f":"SUM(E7:S7)","v":0},{"$f":"AB7+AB10","v":0}]
[null,null,"Del 2","Oppgave",1,"2a","2b","2c","3a","3b","4a","4b","4c","4d","5a","5b","5c","5d","6a","6b","6c","7a","7b","7c",null,null,null,"SUM \nDEL 2","AV"]
[null,null,null,"Poeng",4,2,1,1,2,1,1,2,2,2,2,1,1,2,2,2,2,2,2,2,null,null,null,{"$f":"SUM(E9:X9)","v":36},{"$f":"AB6+AB9","v":60}]
[null,null,null,"Sensors\npoeng",null,null,null,null,null,null,null,null,null,null,null,null,null,null,null,null,null,null,null,null,null,null,null,{"$f":"SUM(E10:X10)","v":0}]
[null,"SAMLET VURDERING (Jfr. Eksamensveiledning 2015 med kjennetegn på måloppnåelse)"]
[null,"Kompetanse",null,null,2,"3/4","5/6","Kommentarer:"]
[null,"Begreper/ferdigheter"]
[null,"Problemløsning"]
[null,"Kommunikasjon"]
[]
[null,"Karakterforslag"]
[null,"Eget karakterforslag"]
[null,"Medsensors forslag"]
[null,"Endelig karakter"]

{"sheet":"K11","index":11,"n_rows":20,"n_cols":29,"rows_kept":20,"cut":false,"hidden":false,"merged":[[0,1,0,24],[0,25,0,28],[4,2,6,2],[11,1,11,3],[12,1,12,3],[12,7,19,28],[13,1,13,3],[14,1,14,3],[17,1,17,3],[18,1,18,3]]}
[null,"VURDERINGSSKJEMA for sentralt gitt skriftlig eksamen i MAT1015 Matematikk 2P                           ",null,null,null,null,null,null,null,null,null,null,null,null,null,null,null,null,null,null,null,null,null,null,null,"Våren 2015"]
[]
[null,"Fagkode:","MAT1015",null,"Fagnavn:",null,"Matematikk 2P",null,null,null,"Skole:",null,null,null,null,null,null,null,"Gruppe:",null,null,null,null,null,"Sensor:"]
[]
[null,"Kand.nr:","Del 1","Oppgave",1,2,"3a","3b","4a","4b","5a","5b","6a","6b","6c","7a","7b","7c",8,null,null,null,null,null,null,null,null,"SUM \nDEL 1"]
[null,null,null,"Poeng",2,1,1,1,1,1,1,1,2,2,2,2,2,2,3,null,null,null,null,null,null,null,null,{"$f":"SUM(E6:S6)","v":24},"TOTALT"]
[null,null,null,"Sensors\npoeng",null,null,null,null,null,null,null,null,null,null,null,null,null,null,null,null,null,null,null,null,null,null,null,{"$f":"SUM(E7:S7)","v":0},{"$f":"AB7+AB10","v":0}]
[null,null,"Del 2","Oppgave",1,"2a","2b","2c","3a","3b","4a","4b","4c","4d","5a","5b","5c","5d","6a","6b","6c","7a","7b","7c",null,null,null,"SUM \nDEL 2","AV"]
[null,null,null,"Poeng",4,2,1,1,2,1,1,2,2,2,2,1,1,2,2,2,2,2,2,2,null,null,null,{"$f":"SUM(E9:X9)","v":36},{"$f":"AB6+AB9","v":60}]
[null,null,null,"Sensors\npoeng",null,null,null,null,null,null,null,null,null,null,null,null,null,null,null,null,null,null,null,null,null,null,null,{"$f":"SUM(E10:X10)","v":0}]
[null,"SAMLET VURDERING (Jfr. Eksamensveiledning 2015 med kjennetegn på måloppnåelse)"]
[null,"Kompetanse",null,null,2,"3/4","5/6","Kommentarer:"]
[null,"Begreper/ferdigheter"]
[null,"Problemløsning"]
[null,"Kommunikasjon"]
[]
[null,"Karakterforslag"]
[null,"Eget karakterforslag"]
[null,"Medsensors forslag"]
[null,"Endelig karakter"]

{"sheet":"K12","index":12,"n_rows":20,"n_cols":29,"rows_kept":20,"cut":false,"hidden":false,"merged":[[0,1,0,24],[0,25,0,28],[4,2,6,2],[11,1,11,3],[12,1,12,3],[12,7,19,28],[13,1,13,3],[14,1,14,3],[17,1,17,3],[18,1,18,3]]}
[null,"VURDERINGSSKJEMA for sentralt gitt skriftlig eksamen i MAT1015 Matematikk 2P                           ",null,null,null,null,null,null,null,null,null,null,null,null,null,null,null,null,null,null,null,null,null,null,null,"Våren 2015"]
[]
[null,"Fagkode:","MAT1015",null,"Fagnavn:",null,"Matematikk 2P",null,null,null,"Skole:",null,null,null,null,null,null,null,"Gruppe:",null,null,null,null,null,"Sensor:"]
[]
[null,"Kand.nr:","Del 1","Oppgave",1,2,"3a","3b","4a","4b","5a","5b","6a","6b","6c","7a","7b","7c",8,null,null,null,null,null,null,null,null,"SUM \nDEL 1"]
[null,null,null,"Poeng",2,1,1,1,1,1,1,1,2,2,2,2,2,2,3,null,null,null,null,null,null,null,null,{"$f":"SUM(E6:S6)","v":24},"TOTALT"]
[null,null,null,"Sensors\npoeng",null,null,null,null,null,null,null,null,null,null,null,null,null,null,null,null,null,null,null,null,null,null,null,{"$f":"SUM(E7:S7)","v":0},{"$f":"AB7+AB10","v":0}]
[null,null,"Del 2","Oppgave",1,"2a","2b","2c","3a","3b","4a","4b","4c","4d","5a","5b","5c","5d","6a","6b","6c","7a","7b","7c",null,null,null,"SUM \nDEL 2","AV"]
[null,null,null,"Poeng",4,2,1,1,2,1,1,2,2,2,2,1,1,2,2,2,2,2,2,2,null,null,null,{"$f":"SUM(E9:X9)","v":36},{"$f":"AB6+AB9","v":60}]
[null,null,null,"Sensors\npoeng",null,null,null,null,null,null,null,null,null,null,null,null,null,null,null,null,null,null,null,null,null,null,null,{"$f":"SUM(E10:X10)","v":0}]
[null,"SAMLET VURDERING (Jfr. Eksamensveiledning 2015 med kjennetegn på måloppnåelse)"]
[null,"Kompetanse",null,null,2,"3/4","5/6","Kommentarer:"]
[null,"Begreper/ferdigheter"]
[null,"Problemløsning"]
[null,"Kommunikasjon"]
[]
[null,"Karakterforslag"]
[null,"Eget karakterforslag"]
[null,"Medsensors forslag"]
[null,"Endelig karakter"]

{"sheet":"K13","index":13,"n_rows":20,"n_cols":29,"rows_kept":20,"cut":false,"hidden":false,"merged":[[0,1,0,24],[0,25,0,28],[4,2,6,2],[11,1,11,3],[12,1,12,3],[12,7,19,28],[13,1,13,3],[14,1,14,3],[17,1,17,3],[18,1,18,3]]}
[null,"VURDERINGSSKJEMA for sentralt gitt skriftlig eksamen i MAT1015 Matematikk 2P                           ",null,null,null,null,null,null,null,null,null,null,null,null,null,null,null,null,null,null,null,null,null,null,null,"Våren 2015"]
[]
[null,"Fagkode:","MAT1015",null,"Fagnavn:",null,"Matematikk 2P",null,null,null,"Skole:",null,null,null,null,null,null,null,"Gruppe:",null,null,null,null,null,"Sensor:"]
[]
[null,"Kand.nr:","Del 1","Oppgave",1,2,"3a","3b","4a","4b","5a","5b","6a","6b","6c","7a","7b","7c",8,null,null,null,null,null,null,null,null,"SUM \nDEL 1"]
[null,null,null,"Poeng",2,1,1,1,1,1,1,1,2,2,2,2,2,2,3,null,null,null,null,null,null,null,null,{"$f":"SUM(E6:S6)","v":24},"TOTALT"]
[null,null,null,"Sensors\npoeng",null,null,null,null,null,null,null,null,null,null,null,null,null,null,null,null,null,null,null,null,null,null,null,{"$f":"SUM(E7:S7)","v":0},{"$f":"AB7+AB10","v":0}]
[null,null,"Del 2","Oppgave",1,"2a","2b","2c","3a","3b","4a","4b","4c","4d","5a","5b","5c","5d","6a","6b","6c","7a","7b","7c",null,null,null,"SUM \nDEL 2","AV"]
[null,null,null,"Poeng",4,2,1,1,2,1,1,2,2,2,2,1,1,2,2,2,2,2,2,2,null,null,null,{"$f":"SUM(E9:X9)","v":36},{"$f":"AB6+AB9","v":60}]
[null,null,null,"Sensors\npoeng",null,null,null,null,null,null,null,null,null,null,null,null,null,null,null,null,null,null,null,null,null,null,null,{"$f":"SUM(E10:X10)","v":0}]
[null,"SAMLET VURDERING (Jfr. Eksamensveiledning 2015 med kjennetegn på måloppnåelse)"]
[null,"Kompetanse",null,null,2,"3/4","5/6","Kommentarer:"]
[null,"Begreper/ferdigheter"]
[null,"Problemløsning"]
[null,"Kommunikasjon"]
[]
[null,"Karakterforslag"]
[null,"Eget karakterforslag"]
[null,"Medsensors forslag"]
[null,"Endelig karakter"]

{"sheet":"K14","index":14,"n_rows":20,"n_cols":29,"rows_kept":20,"cut":false,"hidden":false,"merged":[[0,1,0,24],[0,25,0,28],[4,2,6,2],[11,1,11,3],[12,1,12,3],[12,7,19,28],[13,1,13,3],[14,1,14,3],[17,1,17,3],[18,1,18,3]]}
[null,"VURDERINGSSKJEMA for sentralt gitt skriftlig eksamen i MAT1015 Matematikk 2P                           ",null,null,null,null,null,null,null,null,null,null,null,null,null,null,null,null,null,null,null,null,null,null,null,"Våren 2015"]
[]
[null,"Fagkode:","MAT1015",null,"Fagnavn:",null,"Matematikk 2P",null,null,null,"Skole:",null,null,null,null,null,null,null,"Gruppe:",null,null,null,null,null,"Sensor:"]
[]
[null,"Kand.nr:","Del 1","Oppgave",1,2,"3a","3b","4a","4b","5a","5b","6a","6b","6c","7a","7b","7c",8,null,null,null,null,null,null,null,null,"SUM \nDEL 1"]
[null,null,null,"Poeng",2,1,1,1,1,1,1,1,2,2,2,2,2,2,3,null,null,null,null,null,null,null,null,{"$f":"SUM(E6:S6)","v":24},"TOTALT"]
[null,null,null,"Sensors\npoeng",null,null,null,null,null,null,null,null,null,null,null,null,null,null,null,null,null,null,null,null,null,null,null,{"$f":"SUM(E7:S7)","v":0},{"$f":"AB7+AB10","v":0}]
[null,null,"Del 2","Oppgave",1,"2a","2b","2c","3a","3b","4a","4b","4c","4d","5a","5b","5c","5d","6a","6b","6c","7a","7b","7c",null,null,null,"SUM \nDEL 2","AV"]
[null,null,null,"Poeng",4,2,1,1,2,1,1,2,2,2,2,1,1,2,2,2,2,2,2,2,null,null,null,{"$f":"SUM(E9:X9)","v":36},{"$f":"AB6+AB9","v":60}]
[null,null,null,"Sensors\npoeng",null,null,null,null,null,null,null,null,null,null,null,null,null,null,null,null,null,null,null,null,null,null,null,{"$f":"SUM(E10:X10)","v":0}]
[null,"SAMLET VURDERING (Jfr. Eksamensveiledning 2015 med kjennetegn på måloppnåelse)"]
[null,"Kompetanse",null,null,2,"3/4","5/6","Kommentarer:"]
[null,"Begreper/ferdigheter"]
[null,"Problemløsning"]
[null,"Kommunikasjon"]
[]
[null,"Karakterforslag"]
[null,"Eget karakterforslag"]
[null,"Medsensors forslag"]
[null,"Endelig karakter"]

{"sheet":"K15","index":15,"n_rows":20,"n_cols":29,"rows_kept":20,"cut":false,"hidden":false,"merged":[[0,1,0,24],[0,25,0,28],[4,2,6,2],[11,1,11,3],[12,1,12,3],[12,7,19,28],[13,1,13,3],[14,1,14,3],[17,1,17,3],[18,1,18,3]]}
[null,"VURDERINGSSKJEMA for sentralt gitt skriftlig eksamen i MAT1015 Matematikk 2P                           ",null,null,null,null,null,null,null,null,null,null,null,null,null,null,null,null,null,null,null,null,null,null,null,"Våren 2015"]
[]
[null,"Fagkode:","MAT1015",null,"Fagnavn:",null,"Matematikk 2P",null,null,null,"Skole:",null,null,null,null,null,null,null,"Gruppe:",null,null,null,null,null,"Sensor:"]
[]
[null,"Kand.nr:","Del 1","Oppgave",1,2,"3a","3b","4a","4b","5a","5b","6a","6b","6c","7a","7b","7c",8,null,null,null,null,null,null,null,null,"SUM \nDEL 1"]
[null,null,null,"Poeng",2,1,1,1,1,1,1,1,2,2,2,2,2,2,3,null,null,null,null,null,null,null,null,{"$f":"SUM(E6:S6)","v":24},"TOTALT"]
[null,null,null,"Sensors\npoeng",null,null,null,null,null,null,null,null,null,null,null,null,null,null,null,null,null,null,null,null,null,null,null,{"$f":"SUM(E7:S7)","v":0},{"$f":"AB7+AB10","v":0}]
[null,null,"Del 2","Oppgave",1,"2a","2b","2c","3a","3b","4a","4b","4c","4d","5a","5b","5c","5d","6a","6b","6c","7a","7b","7c",null,null,null,"SUM \nDEL 2","AV"]
[null,null,null,"Poeng",4,2,1,1,2,1,1,2,2,2,2,1,1,2,2,2,2,2,2,2,null,null,null,{"$f":"SUM(E9:X9)","v":36},{"$f":"AB6+AB9","v":60}]
[null,null,null,"Sensors\npoeng",null,null,null,null,null,null,null,null,null,null,null,null,null,null,null,null,null,null,null,null,null,null,null,{"$f":"SUM(E10:X10)","v":0}]
[null,"SAMLET VURDERING (Jfr. Eksamensveiledning 2015 med kjennetegn på måloppnåelse)"]
[null,"Kompetanse",null,null,2,"3/4","5/6","Kommentarer:"]
[null,"Begreper/ferdigheter"]
[null,"Problemløsning"]
[null,"Kommunikasjon"]
[]
[null,"Karakterforslag"]
[null,"Eget karakterforslag"]
[null,"Medsensors forslag"]
[null,"Endelig karakter"]

{"sheet":"K16","index":16,"n_rows":20,"n_cols":29,"rows_kept":20,"cut":false,"hidden":false,"merged":[[0,1,0,24],[0,25,0,28],[4,2,6,2],[11,1,11,3],[12,1,12,3],[12,7,19,28],[13,1,13,3],[14,1,14,3],[17,1,17,3],[18,1,18,3]]}
[null,"VURDERINGSSKJEMA for sentralt gitt skriftlig eksamen i MAT1015 Matematikk 2P                           ",null,null,null,null,null,null,null,null,null,null,null,null,null,null,null,null,null,null,null,null,null,null,null,"Våren 2015"]
[]
[null,"Fagkode:","MAT1015",null,"Fagnavn:",null,"Matematikk 2P",null,null,null,"Skole:",null,null,null,null,null,null,null,"Gruppe:",null,null,null,null,null,"Sensor:"]
[]
[null,"Kand.nr:","Del 1","Oppgave",1,2,"3a","3b","4a","4b","5a","5b","6a","6b","6c","7a","7b","7c",8,null,null,null,null,null,null,null,null,"SUM \nDEL 1"]
[null,null,null,"Poeng",2,1,1,1,1,1,1,1,2,2,2,2,2,2,3,null,null,null,null,null,null,null,null,{"$f":"SUM(E6:S6)","v":24},"TOTALT"]
[null,null,null,"Sensors\npoeng",null,null,null,null,null,null,null,null,null,null,null,null,null,null,null,null,null,null,null,null,null,null,null,{"$f":"SUM(E7:S7)","v":0},{"$f":"AB7+AB10","v":0}]
[null,null,"Del 2","Oppgave",1,"2a","2b","2c","3a","3b","4a","4b","4c","4d","5a","5b","5c","5d","6a","6b","6c","7a","7b","7c",null,null,null,"SUM \nDEL 2","AV"]
[null,null,null,"Poeng",4,2,1,1,2,1,1,2,2,2,2,1,1,2,2,2,2,2,2,2,null,null,null,{"$f":"SUM(E9:X9)","v":36},{"$f":"AB6+AB9","v":60}]
[null,null,null,"Sensors\npoeng",null,null,null,null,null,null,null,null,null,null,null,null,null,null,null,null,null,null,null,null,null,null,null,{"$f":"SUM(E10:X10)","v":0}]
[null,"SAMLET VURDERING (Jfr. Eksamensveiledning 2015 med kjennetegn på måloppnåelse)"]
[null,"Kompetanse",null,null,2,"3/4","5/6","Kommentarer:"]
[null,"Begreper/ferdigheter"]
[null,"Problemløsning"]
[null,"Kommunikasjon"]
[]
[null,"Karakterforslag"]
[null,"Eget karakterforslag"]
[null,"Medsensors forslag"]
[null,"Endelig karakter"]

{"sheet":"K17","index":17,"n_rows":20,"n_cols":29,"rows_kept":20,"cut":false,"hidden":false,"merged":[[0,1,0,24],[0,25,0,28],[4,2,6,2],[11,1,11,3],[12,1,12,3],[12,7,19,28],[13,1,13,3],[14,1,14,3],[17,1,17,3],[18,1,18,3]]}
[null,"VURDERINGSSKJEMA for sentralt gitt skriftlig eksamen i MAT1015 Matematikk 2P                           ",null,null,null,null,null,null,null,null,null,null,null,null,null,null,null,null,null,null,null,null,null,null,null,"Våren 2015"]
[]
[null,"Fagkode:","MAT1015",null,"Fagnavn:",null,"Matematikk 2P",null,null,null,"Skole:",null,null,null,null,null,null,null,"Gruppe:",null,null,null,null,null,"Sensor:"]
[]
[null,"Kand.nr:","Del 1","Oppgave",1,2,"3a","3b","4a","4b","5a","5b","6a","6b","6c","7a","7b","7c",8,null,null,null,null,null,null,null,null,"SUM \nDEL 1"]
[null,null,null,"Poeng",2,1,1,1,1,1,1,1,2,2,2,2,2,2,3,null,null,null,null,null,null,null,null,{"$f":"SUM(E6:S6)","v":24},"TOTALT"]
[null,null,null,"Sensors\npoeng",null,null,null,null,null,null,null,null,null,null,null,null,null,null,null,null,null,null,null,null,null,null,null,{"$f":"SUM(E7:S7)","v":0},{"$f":"AB7+AB10","v":0}]
[null,null,"Del 2","Oppgave",1,"2a","2b","2c","3a","3b","4a","4b","4c","4d","5a","5b","5c","5d","6a","6b","6c","7a","7b","7c",null,null,null,"SUM \nDEL 2","AV"]
[null,null,null,"Poeng",4,2,1,1,2,1,1,2,2,2,2,1,1,2,2,2,2,2,2,2,null,null,null,{"$f":"SUM(E9:X9)","v":36},{"$f":"AB6+AB9","v":60}]
[null,null,null,"Sensors\npoeng",null,null,null,null,null,null,null,null,null,null,null,null,null,null,null,null,null,null,null,null,null,null,null,{"$f":"SUM(E10:X10)","v":0}]
[null,"SAMLET VURDERING (Jfr. Eksamensveiledning 2015 med kjennetegn på måloppnåelse)"]
[null,"Kompetanse",null,null,2,"3/4","5/6","Kommentarer:"]
[null,"Begreper/ferdigheter"]
[null,"Problemløsning"]
[null,"Kommunikasjon"]
[]
[null,"Karakterforslag"]
[null,"Eget karakterforslag"]
[null,"Medsensors forslag"]
[null,"Endelig karakter"]

{"sheet":"K18","index":18,"n_rows":20,"n_cols":29,"rows_kept":20,"cut":false,"hidden":false,"merged":[[0,1,0,24],[0,25,0,28],[4,2,6,2],[11,1,11,3],[12,1,12,3],[12,7,19,28],[13,1,13,3],[14,1,14,3],[17,1,17,3],[18,1,18,3]]}
[null,"VURDERINGSSKJEMA for sentralt gitt skriftlig eksamen i MAT1015 Matematikk 2P                           ",null,null,null,null,null,null,null,null,null,null,null,null,null,null,null,null,null,null,null,null,null,null,null,"Våren 2015"]
[]
[null,"Fagkode:","MAT1015",null,"Fagnavn:",null,"Matematikk 2P",null,null,null,"Skole:",null,null,null,null,null,null,null,"Gruppe:",null,null,null,null,null,"Sensor:"]
[]
[null,"Kand.nr:","Del 1","Oppgave",1,2,"3a","3b","4a","4b","5a","5b","6a","6b","6c","7a","7b","7c",8,null,null,null,null,null,null,null,null,"SUM \nDEL 1"]
[null,null,null,"Poeng",2,1,1,1,1,1,1,1,2,2,2,2,2,2,3,null,null,null,null,null,null,null,null,{"$f":"SUM(E6:S6)","v":24},"TOTALT"]
[null,null,null,"Sensors\npoeng",null,null,null,null,null,null,null,null,null,null,null,null,null,null,null,null,null,null,null,null,null,null,null,{"$f":"SUM(E7:S7)","v":0},{"$f":"AB7+AB10","v":0}]
[null,null,"Del 2","Oppgave",1,"2a","2b","2c","3a","3b","4a","4b","4c","4d","5a","5b","5c","5d","6a","6b","6c","7a","7b","7c",null,null,null,"SUM \nDEL 2","AV"]
[null,null,null,"Poeng",4,2,1,1,2,1,1,2,2,2,2,1,1,2,2,2,2,2,2,2,null,null,null,{"$f":"SUM(E9:X9)","v":36},{"$f":"AB6+AB9","v":60}]
[null,null,null,"Sensors\npoeng",null,null,null,null,null,null,null,null,null,null,null,null,null,null,null,null,null,null,null,null,null,null,null,{"$f":"SUM(E10:X10)","v":0}]
[null,"SAMLET VURDERING (Jfr. Eksamensveiledning 2015 med kjennetegn på måloppnåelse)"]
[null,"Kompetanse",null,null,2,"3/4","5/6","Kommentarer:"]
[null,"Begreper/ferdigheter"]
[null,"Problemløsning"]
[null,"Kommunikasjon"]
[]
[null,"Karakterforslag"]
[null,"Eget karakterforslag"]
[null,"Medsensors forslag"]
[null,"Endelig karakter"]

{"sheet":"K19","index":19,"n_rows":20,"n_cols":29,"rows_kept":20,"cut":false,"hidden":false,"merged":[[0,1,0,24],[0,25,0,28],[4,2,6,2],[11,1,11,3],[12,1,12,3],[12,7,19,28],[13,1,13,3],[14,1,14,3],[17,1,17,3],[18,1,18,3]]}
[null,"VURDERINGSSKJEMA for sentralt gitt skriftlig eksamen i MAT1015 Matematikk 2P                           ",null,null,null,null,null,null,null,null,null,null,null,null,null,null,null,null,null,null,null,null,null,null,null,"Våren 2015"]
[]
[null,"Fagkode:","MAT1015",null,"Fagnavn:",null,"Matematikk 2P",null,null,null,"Skole:",null,null,null,null,null,null,null,"Gruppe:",null,null,null,null,null,"Sensor:"]
[]
[null,"Kand.nr:","Del 1","Oppgave",1,2,"3a","3b","4a","4b","5a","5b","6a","6b","6c","7a","7b","7c",8,null,null,null,null,null,null,null,null,"SUM \nDEL 1"]
[null,null,null,"Poeng",2,1,1,1,1,1,1,1,2,2,2,2,2,2,3,null,null,null,null,null,null,null,null,{"$f":"SUM(E6:S6)","v":24},"TOTALT"]
[null,null,null,"Sensors\npoeng",null,null,null,null,null,null,null,null,null,null,null,null,null,null,null,null,null,null,null,null,null,null,null,{"$f":"SUM(E7:S7)","v":0},{"$f":"AB7+AB10","v":0}]
[null,null,"Del 2","Oppgave",1,"2a","2b","2c","3a","3b","4a","4b","4c","4d","5a","5b","5c","5d","6a","6b","6c","7a","7b","7c",null,null,null,"SUM \nDEL 2","AV"]
[null,null,null,"Poeng",4,2,1,1,2,1,1,2,2,2,2,1,1,2,2,2,2,2,2,2,null,null,null,{"$f":"SUM(E9:X9)","v":36},{"$f":"AB6+AB9","v":60}]
[null,null,null,"Sensors\npoeng",null,null,null,null,null,null,null,null,null,null,null,null,null,null,null,null,null,null,null,null,null,null,null,{"$f":"SUM(E10:X10)","v":0}]
[null,"SAMLET VURDERING (Jfr. Eksamensveiledning 2015 med kjennetegn på måloppnåelse)"]
[null,"Kompetanse",null,null,2,"3/4","5/6","Kommentarer:"]
[null,"Begreper/ferdigheter"]
[null,"Problemløsning"]
[null,"Kommunikasjon"]
[]
[null,"Karakterforslag"]
[null,"Eget karakterforslag"]
[null,"Medsensors forslag"]
[null,"Endelig karakter"]

{"sheet":"K20","index":20,"n_rows":20,"n_cols":29,"rows_kept":20,"cut":false,"hidden":false,"merged":[[0,1,0,24],[0,25,0,28],[4,2,6,2],[11,1,11,3],[12,1,12,3],[12,7,19,28],[13,1,13,3],[14,1,14,3],[17,1,17,3],[18,1,18,3]]}
[null,"VURDERINGSSKJEMA for sentralt gitt skriftlig eksamen i MAT1015 Matematikk 2P                           ",null,null,null,null,null,null,null,null,null,null,null,null,null,null,null,null,null,null,null,null,null,null,null,"Våren 2015"]
[]
[null,"Fagkode:","MAT1015",null,"Fagnavn:",null,"Matematikk 2P",null,null,null,"Skole:",null,null,null,null,null,null,null,"Gruppe:",null,null,null,null,null,"Sensor:"]
[]
[null,"Kand.nr:","Del 1","Oppgave",1,2,"3a","3b","4a","4b","5a","5b","6a","6b","6c","7a","7b","7c",8,null,null,null,null,null,null,null,null,"SUM \nDEL 1"]
[null,null,null,"Poeng",2,1,1,1,1,1,1,1,2,2,2,2,2,2,3,null,null,null,null,null,null,null,null,{"$f":"SUM(E6:S6)","v":24},"TOTALT"]
[null,null,null,"Sensors\npoeng",null,null,null,null,null,null,null,null,null,null,null,null,null,null,null,null,null,null,null,null,null,null,null,{"$f":"SUM(E7:S7)","v":0},{"$f":"AB7+AB10","v":0}]
[null,null,"Del 2","Oppgave",1,"2a","2b","2c","3a","3b","4a","4b","4c","4d","5a","5b","5c","5d","6a","6b","6c","7a","7b","7c",null,null,null,"SUM \nDEL 2","AV"]
[null,null,null,"Poeng",4,2,1,1,2,1,1,2,2,2,2,1,1,2,2,2,2,2,2,2,null,null,null,{"$f":"SUM(E9:X9)","v":36},{"$f":"AB6+AB9","v":60}]
[null,null,null,"Sensors\npoeng",null,null,null,null,null,null,null,null,null,null,null,null,null,null,null,null,null,null,null,null,null,null,null,{"$f":"SUM(E10:X10)","v":0}]
[null,"SAMLET VURDERING (Jfr. Eksamensveiledning 2015 med kjennetegn på måloppnåelse)"]
[null,"Kompetanse",null,null,2,"3/4","5/6","Kommentarer:"]
[null,"Begreper/ferdigheter"]
[null,"Problemløsning"]
[null,"Kommunikasjon"]
[]
[null,"Karakterforslag"]
[null,"Eget karakterforslag"]
[null,"Medsensors forslag"]
[null,"Endelig karakter"]

{"sheet":"K21","index":21,"n_rows":20,"n_cols":29,"rows_kept":20,"cut":false,"hidden":false,"merged":[[0,1,0,24],[0,25,0,28],[4,2,6,2],[11,1,11,3],[12,1,12,3],[12,7,19,28],[13,1,13,3],[14,1,14,3],[17,1,17,3],[18,1,18,3]]}
[null,"VURDERINGSSKJEMA for sentralt gitt skriftlig eksamen i MAT1015 Matematikk 2P                           ",null,null,null,null,null,null,null,null,null,null,null,null,null,null,null,null,null,null,null,null,null,null,null,"Våren 2015"]
[]
[null,"Fagkode:","MAT1015",null,"Fagnavn:",null,"Matematikk 2P",null,null,null,"Skole:",null,null,null,null,null,null,null,"Gruppe:",null,null,null,null,null,"Sensor:"]
[]
[null,"Kand.nr:","Del 1","Oppgave",1,2,"3a","3b","4a","4b","5a","5b","6a","6b","6c","7a","7b","7c",8,null,null,null,null,null,null,null,null,"SUM \nDEL 1"]
[null,null,null,"Poeng",2,1,1,1,1,1,1,1,2,2,2,2,2,2,3,null,null,null,null,null,null,null,null,{"$f":"SUM(E6:S6)","v":24},"TOTALT"]
[null,null,null,"Sensors\npoeng",null,null,null,null,null,null,null,null,null,null,null,null,null,null,null,null,null,null,null,null,null,null,null,{"$f":"SUM(E7:S7)","v":0},{"$f":"AB7+AB10","v":0}]
[null,null,"Del 2","Oppgave",1,"2a","2b","2c","3a","3b","4a","4b","4c","4d","5a","5b","5c","5d","6a","6b","6c","7a","7b","7c",null,null,null,"SUM \nDEL 2","AV"]
[null,null,null,"Poeng",4,2,1,1,2,1,1,2,2,2,2,1,1,2,2,2,2,2,2,2,null,null,null,{"$f":"SUM(E9:X9)","v":36},{"$f":"AB6+AB9","v":60}]
[null,null,null,"Sensors\npoeng",null,null,null,null,null,null,null,null,null,null,null,null,null,null,null,null,null,null,null,null,null,null,null,{"$f":"SUM(E10:X10)","v":0}]
[null,"SAMLET VURDERING (Jfr. Eksamensveiledning 2015 med kjennetegn på måloppnåelse)"]
[null,"Kompetanse",null,null,2,"3/4","5/6","Kommentarer:"]
[null,"Begreper/ferdigheter"]
[null,"Problemløsning"]
[null,"Kommunikasjon"]
[]
[null,"Karakterforslag"]
[null,"Eget karakterforslag"]
[null,"Medsensors forslag"]
[null,"Endelig karakter"]

{"sheet":"K22","index":22,"n_rows":20,"n_cols":29,"rows_kept":20,"cut":false,"hidden":false,"merged":[[0,1,0,24],[0,25,0,28],[4,2,6,2],[11,1,11,3],[12,1,12,3],[12,7,19,28],[13,1,13,3],[14,1,14,3],[17,1,17,3],[18,1,18,3]]}
[null,"VURDERINGSSKJEMA for sentralt gitt skriftlig eksamen i MAT1015 Matematikk 2P                           ",null,null,null,null,null,null,null,null,null,null,null,null,null,null,null,null,null,null,null,null,null,null,null,"Våren 2015"]
[]
[null,"Fagkode:","MAT1015",null,"Fagnavn:",null,"Matematikk 2P",null,null,null,"Skole:",null,null,null,null,null,null,null,"Gruppe:",null,null,null,null,null,"Sensor:"]
[]
[null,"Kand.nr:","Del 1","Oppgave",1,2,"3a","3b","4a","4b","5a","5b","6a","6b","6c","7a","7b","7c",8,null,null,null,null,null,null,null,null,"SUM \nDEL 1"]
[null,null,null,"Poeng",2,1,1,1,1,1,1,1,2,2,2,2,2,2,3,null,null,null,null,null,null,null,null,{"$f":"SUM(E6:S6)","v":24},"TOTALT"]
[null,null,null,"Sensors\npoeng",null,null,null,null,null,null,null,null,null,null,null,null,null,null,null,null,null,null,null,null,null,null,null,{"$f":"SUM(E7:S7)","v":0},{"$f":"AB7+AB10","v":0}]
[null,null,"Del 2","Oppgave",1,"2a","2b","2c","3a","3b","4a","4b","4c","4d","5a","5b","5c","5d","6a","6b","6c","7a","7b","7c",null,null,null,"SUM \nDEL 2","AV"]
[null,null,null,"Poeng",4,2,1,1,2,1,1,2,2,2,2,1,1,2,2,2,2,2,2,2,null,null,null,{"$f":"SUM(E9:X9)","v":36},{"$f":"AB6+AB9","v":60}]
[null,null,null,"Sensors\npoeng",null,null,null,null,null,null,null,null,null,null,null,null,null,null,null,null,null,null,null,null,null,null,null,{"$f":"SUM(E10:X10)","v":0}]
[null,"SAMLET VURDERING (Jfr. Eksamensveiledning 2015 med kjennetegn på måloppnåelse)"]
[null,"Kompetanse",null,null,2,"3/4","5/6","Kommentarer:"]
[null,"Begreper/ferdigheter"]
[null,"Problemløsning"]
[null,"Kommunikasjon"]
[]
[null,"Karakterforslag"]
[null,"Eget karakterforslag"]
[null,"Medsensors forslag"]
[null,"Endelig karakter"]

{"sheet":"K23","index":23,"n_rows":20,"n_cols":29,"rows_kept":20,"cut":false,"hidden":false,"merged":[[0,1,0,24],[0,25,0,28],[4,2,6,2],[11,1,11,3],[12,1,12,3],[12,7,19,28],[13,1,13,3],[14,1,14,3],[17,1,17,3],[18,1,18,3]]}
[null,"VURDERINGSSKJEMA for sentralt gitt skriftlig eksamen i MAT1015 Matematikk 2P                           ",null,null,null,null,null,null,null,null,null,null,null,null,null,null,null,null,null,null,null,null,null,null,null,"Våren 2015"]
[]
[null,"Fagkode:","MAT1015",null,"Fagnavn:",null,"Matematikk 2P",null,null,null,"Skole:",null,null,null,null,null,null,null,"Gruppe:",null,null,null,null,null,"Sensor:"]
[]
[null,"Kand.nr:","Del 1","Oppgave",1,2,"3a","3b","4a","4b","5a","5b","6a","6b","6c","7a","7b","7c",8,null,null,null,null,null,null,null,null,"SUM \nDEL 1"]
[null,null,null,"Poeng",2,1,1,1,1,1,1,1,2,2,2,2,2,2,3,null,null,null,null,null,null,null,null,{"$f":"SUM(E6:S6)","v":24},"TOTALT"]
[null,null,null,"Sensors\npoeng",null,null,null,null,null,null,null,null,null,null,null,null,null,null,null,null,null,null,null,null,null,null,null,{"$f":"SUM(E7:S7)","v":0},{"$f":"AB7+AB10","v":0}]
[null,null,"Del 2","Oppgave",1,"2a","2b","2c","3a","3b","4a","4b","4c","4d","5a","5b","5c","5d","6a","6b","6c","7a","7b","7c",null,null,null,"SUM \nDEL 2","AV"]
[null,null,null,"Poeng",4,2,1,1,2,1,1,2,2,2,2,1,1,2,2,2,2,2,2,2,null,null,null,{"$f":"SUM(E9:X9)","v":36},{"$f":"AB6+AB9","v":60}]
[null,null,null,"Sensors\npoeng",null,null,null,null,null,null,null,null,null,null,null,null,null,null,null,null,null,null,null,null,null,null,null,{"$f":"SUM(E10:X10)","v":0}]
[null,"SAMLET VURDERING (Jfr. Eksamensveiledning 2015 med kjennetegn på måloppnåelse)"]
[null,"Kompetanse",null,null,2,"3/4","5/6","Kommentarer:"]
[null,"Begreper/ferdigheter"]
[null,"Problemløsning"]
[null,"Kommunikasjon"]
[]
[null,"Karakterforslag"]
[null,"Eget karakterforslag"]
[null,"Medsensors forslag"]
[null,"Endelig karakter"]

{"sheet":"K24","index":24,"n_rows":20,"n_cols":29,"rows_kept":20,"cut":false,"hidden":false,"merged":[[0,1,0,24],[0,25,0,28],[4,2,6,2],[11,1,11,3],[12,1,12,3],[12,7,19,28],[13,1,13,3],[14,1,14,3],[17,1,17,3],[18,1,18,3]]}
[null,"VURDERINGSSKJEMA for sentralt gitt skriftlig eksamen i MAT1015 Matematikk 2P                           ",null,null,null,null,null,null,null,null,null,null,null,null,null,null,null,null,null,null,null,null,null,null,null,"Våren 2015"]
[]
[null,"Fagkode:","MAT1015",null,"Fagnavn:",null,"Matematikk 2P",null,null,null,"Skole:",null,null,null,null,null,null,null,"Gruppe:",null,null,null,null,null,"Sensor:"]
[]
[null,"Kand.nr:","Del 1","Oppgave",1,2,"3a","3b","4a","4b","5a","5b","6a","6b","6c","7a","7b","7c",8,null,null,null,null,null,null,null,null,"SUM \nDEL 1"]
[null,null,null,"Poeng",2,1,1,1,1,1,1,1,2,2,2,2,2,2,3,null,null,null,null,null,null,null,null,{"$f":"SUM(E6:S6)","v":24},"TOTALT"]
[null,null,null,"Sensors\npoeng",null,null,null,null,null,null,null,null,null,null,null,null,null,null,null,null,null,null,null,null,null,null,null,{"$f":"SUM(E7:S7)","v":0},{"$f":"AB7+AB10","v":0}]
[null,null,"Del 2","Oppgave",1,"2a","2b","2c","3a","3b","4a","4b","4c","4d","5a","5b","5c","5d","6a","6b","6c","7a","7b","7c",null,null,null,"SUM \nDEL 2","AV"]
[null,null,null,"Poeng",4,2,1,1,2,1,1,2,2,2,2,1,1,2,2,2,2,2,2,2,null,null,null,{"$f":"SUM(E9:X9)","v":36},{"$f":"AB6+AB9","v":60}]
[null,null,null,"Sensors\npoeng",null,null,null,null,null,null,null,null,null,null,null,null,null,null,null,null,null,null,null,null,null,null,null,{"$f":"SUM(E10:X10)","v":0}]
[null,"SAMLET VURDERING (Jfr. Eksamensveiledning 2015 med kjennetegn på måloppnåelse)"]
[null,"Kompetanse",null,null,2,"3/4","5/6","Kommentarer:"]
[null,"Begreper/ferdigheter"]
[null,"Problemløsning"]
[null,"Kommunikasjon"]
[]
[null,"Karakterforslag"]
[null,"Eget karakterforslag"]
[null,"Medsensors forslag"]
[null,"Endelig karakter"]

{"sheet":"K25","index":25,"n_rows":20,"n_cols":29,"rows_kept":20,"cut":false,"hidden":false,"merged":[[0,1,0,24],[0,25,0,28],[4,2,6,2],[11,1,11,3],[12,1,12,3],[12,7,19,28],[13,1,13,3],[14,1,14,3],[17,1,17,3],[18,1,18,3]]}
[null,"VURDERINGSSKJEMA for sentralt gitt skriftlig eksamen i MAT1015 Matematikk 2P                           ",null,null,null,null,null,null,null,null,null,null,null,null,null,null,null,null,null,null,null,null,null,null,null,"Våren 2015"]
[]
[null,"Fagkode:","MAT1015",null,"Fagnavn:",null,"Matematikk 2P",null,null,null,"Skole:",null,null,null,null,null,null,null,"Gruppe:",null,null,null,null,null,"Sensor:"]
[]
[null,"Kand.nr:","Del 1","Oppgave",1,2,"3a","3b","4a","4b","5a","5b","6a","6b","6c","7a","7b","7c",8,null,null,null,null,null,null,null,null,"SUM \nDEL 1"]
[null,null,null,"Poeng",2,1,1,1,1,1,1,1,2,2,2,2,2,2,3,null,null,null,null,null,null,null,null,{"$f":"SUM(E6:S6)","v":24},"TOTALT"]
[null,null,null,"Sensors\npoeng",null,null,null,null,null,null,null,null,null,null,null,null,null,null,null,null,null,null,null,null,null,null,null,{"$f":"SUM(E7:S7)","v":0},{"$f":"AB7+AB10","v":0}]
[null,null,"Del 2","Oppgave",1,"2a","2b","2c","3a","3b","4a","4b","4c","4d","5a","5b","5c","5d","6a","6b","6c","7a","7b","7c",null,null,null,"SUM \nDEL 2","AV"]
[null,null,null,"Poeng",4,2,1,1,2,1,1,2,2,2,2,1,1,2,2,2,2,2,2,2,null,null,null,{"$f":"SUM(E9:X9)","v":36},{"$f":"AB6+AB9","v":60}]
[null,null,null,"Sensors\npoeng",null,null,null,null,null,null,null,null,null,null,null,null,null,null,null,null,null,null,null,null,null,null,null,{"$f":"SUM(E10:X10)","v":0}]
[null,"SAMLET VURDERING (Jfr. Eksamensveiledning 2015 med kjennetegn på måloppnåelse)"]
[null,"Kompetanse",null,null,2,"3/4","5/6","Kommentarer:"]
[null,"Begreper/ferdigheter"]
[null,"Problemløsning"]
[null,"Kommunikasjon"]
[]
[null,"Karakterforslag"]
[null,"Eget karakterforslag"]
[null,"Medsensors forslag"]
[null,"Endelig karakter"]

{"sheet":"K26","index":26,"n_rows":20,"n_cols":29,"rows_kept":20,"cut":false,"hidden":false,"merged":[[0,1,0,24],[0,25,0,28],[4,2,6,2],[11,1,11,3],[12,1,12,3],[12,7,19,28],[13,1,13,3],[14,1,14,3],[17,1,17,3],[18,1,18,3]]}
[null,"VURDERINGSSKJEMA for sentralt gitt skriftlig eksamen i MAT1015 Matematikk 2P                           ",null,null,null,null,null,null,null,null,null,null,null,null,null,null,null,null,null,null,null,null,null,null,null,"Våren 2015"]
[]
[null,"Fagkode:","MAT1015",null,"Fagnavn:",null,"Matematikk 2P",null,null,null,"Skole:",null,null,null,null,null,null,null,"Gruppe:",null,null,null,null,null,"Sensor:"]
[]
[null,"Kand.nr:","Del 1","Oppgave",1,2,"3a","3b","4a","4b","5a","5b","6a","6b","6c","7a","7b","7c",8,null,null,null,null,null,null,null,null,"SUM \nDEL 1"]
[null,null,null,"Poeng",2,1,1,1,1,1,1,1,2,2,2,2,2,2,3,null,null,null,null,null,null,null,null,{"$f":"SUM(E6:S6)","v":24},"TOTALT"]
[null,null,null,"Sensors\npoeng",null,null,null,null,null,null,null,null,null,null,null,null,null,null,null,null,null,null,null,null,null,null,null,{"$f":"SUM(E7:S7)","v":0},{"$f":"AB7+AB10","v":0}]
[null,null,"Del 2","Oppgave",1,"2a","2b","2c","3a","3b","4a","4b","4c","4d","5a","5b","5c","5d","6a","6b","6c","7a","7b","7c",null,null,null,"SUM \nDEL 2","AV"]
[null,null,null,"Poeng",4,2,1,1,2,1,1,2,2,2,2,1,1,2,2,2,2,2,2,2,null,null,null,{"$f":"SUM(E9:X9)","v":36},{"$f":"AB6+AB9","v":60}]
[null,null,null,"Sensors\npoeng",null,null,null,null,null,null,null,null,null,null,null,null,null,null,null,null,null,null,null,null,null,null,null,{"$f":"SUM(E10:X10)","v":0}]
[null,"SAMLET VURDERING (Jfr. Eksamensveiledning 2015 med kjennetegn på måloppnåelse)"]
[null,"Kompetanse",null,null,2,"3/4","5/6","Kommentarer:"]
[null,"Begreper/ferdigheter"]
[null,"Problemløsning"]
[null,"Kommunikasjon"]
[]
[null,"Karakterforslag"]
[null,"Eget karakterforslag"]
[null,"Medsensors forslag"]
[null,"Endelig karakter"]

{"sheet":"K27","index":27,"n_rows":20,"n_cols":29,"rows_kept":20,"cut":false,"hidden":false,"merged":[[0,1,0,24],[0,25,0,28],[4,2,6,2],[11,1,11,3],[12,1,12,3],[12,7,19,28],[13,1,13,3],[14,1,14,3],[17,1,17,3],[18,1,18,3]]}
[null,"VURDERINGSSKJEMA for sentralt gitt skriftlig eksamen i MAT1015 Matematikk 2P                           ",null,null,null,null,null,null,null,null,null,null,null,null,null,null,null,null,null,null,null,null,null,null,null,"Våren 2015"]
[]
[null,"Fagkode:","MAT1015",null,"Fagnavn:",null,"Matematikk 2P",null,null,null,"Skole:",null,null,null,null,null,null,null,"Gruppe:",null,null,null,null,null,"Sensor:"]
[]
[null,"Kand.nr:","Del 1","Oppgave",1,2,"3a","3b","4a","4b","5a","5b","6a","6b","6c","7a","7b","7c",8,null,null,null,null,null,null,null,null,"SUM \nDEL 1"]
[null,null,null,"Poeng",2,1,1,1,1,1,1,1,2,2,2,2,2,2,3,null,null,null,null,null,null,null,null,{"$f":"SUM(E6:S6)","v":24},"TOTALT"]
[null,null,null,"Sensors\npoeng",null,null,null,null,null,null,null,null,null,null,null,null,null,null,null,null,null,null,null,null,null,null,null,{"$f":"SUM(E7:S7)","v":0},{"$f":"AB7+AB10","v":0}]
[null,null,"Del 2","Oppgave",1,"2a","2b","2c","3a","3b","4a","4b","4c","4d","5a","5b","5c","5d","6a","6b","6c","7a","7b","7c",null,null,null,"SUM \nDEL 2","AV"]
[null,null,null,"Poeng",4,2,1,1,2,1,1,2,2,2,2,1,1,2,2,2,2,2,2,2,null,null,null,{"$f":"SUM(E9:X9)","v":36},{"$f":"AB6+AB9","v":60}]
[null,null,null,"Sensors\npoeng",null,null,null,null,null,null,null,null,null,null,null,null,null,null,null,null,null,null,null,null,null,null,null,{"$f":"SUM(E10:X10)","v":0}]
[null,"SAMLET VURDERING (Jfr. Eksamensveiledning 2015 med kjennetegn på måloppnåelse)"]
[null,"Kompetanse",null,null,2,"3/4","5/6","Kommentarer:"]
[null,"Begreper/ferdigheter"]
[null,"Problemløsning"]
[null,"Kommunikasjon"]
[]
[null,"Karakterforslag"]
[null,"Eget karakterforslag"]
[null,"Medsensors forslag"]
[null,"Endelig karakter"]

{"sheet":"K28","index":28,"n_rows":20,"n_cols":29,"rows_kept":20,"cut":false,"hidden":false,"merged":[[0,1,0,24],[0,25,0,28],[4,2,6,2],[11,1,11,3],[12,1,12,3],[12,7,19,28],[13,1,13,3],[14,1,14,3],[17,1,17,3],[18,1,18,3]]}
[null,"VURDERINGSSKJEMA for sentralt gitt skriftlig eksamen i MAT1015 Matematikk 2P                           ",null,null,null,null,null,null,null,null,null,null,null,null,null,null,null,null,null,null,null,null,null,null,null,"Våren 2015"]
[]
[null,"Fagkode:","MAT1015",null,"Fagnavn:",null,"Matematikk 2P",null,null,null,"Skole:",null,null,null,null,null,null,null,"Gruppe:",null,null,null,null,null,"Sensor:"]
[]
[null,"Kand.nr:","Del 1","Oppgave",1,2,"3a","3b","4a","4b","5a","5b","6a","6b","6c","7a","7b","7c",8,null,null,null,null,null,null,null,null,"SUM \nDEL 1"]
[null,null,null,"Poeng",2,1,1,1,1,1,1,1,2,2,2,2,2,2,3,null,null,null,null,null,null,null,null,{"$f":"SUM(E6:S6)","v":24},"TOTALT"]
[null,null,null,"Sensors\npoeng",null,null,null,null,null,null,null,null,null,null,null,null,null,null,null,null,null,null,null,null,null,null,null,{"$f":"SUM(E7:S7)","v":0},{"$f":"AB7+AB10","v":0}]
[null,null,"Del 2","Oppgave",1,"2a","2b","2c","3a","3b","4a","4b","4c","4d","5a","5b","5c","5d","6a","6b","6c","7a","7b","7c",null,null,null,"SUM \nDEL 2","AV"]
[null,null,null,"Poeng",4,2,1,1,2,1,1,2,2,2,2,1,1,2,2,2,2,2,2,2,null,null,null,{"$f":"SUM(E9:X9)","v":36},{"$f":"AB6+AB9","v":60}]
[null,null,null,"Sensors\npoeng",null,null,null,null,null,null,null,null,null,null,null,null,null,null,null,null,null,null,null,null,null,null,null,{"$f":"SUM(E10:X10)","v":0}]
[null,"SAMLET VURDERING (Jfr. Eksamensveiledning 2015 med kjennetegn på måloppnåelse)"]
[null,"Kompetanse",null,null,2,"3/4","5/6","Kommentarer:"]
[null,"Begreper/ferdigheter"]
[null,"Problemløsning"]
[null,"Kommunikasjon"]
[]
[null,"Karakterforslag"]
[null,"Eget karakterforslag"]
[null,"Medsensors forslag"]
[null,"Endelig karakter"]

{"sheet":"K29","index":29,"n_rows":20,"n_cols":29,"rows_kept":20,"cut":false,"hidden":false,"merged":[[0,1,0,24],[0,25,0,28],[4,2,6,2],[11,1,11,3],[12,1,12,3],[12,7,19,28],[13,1,13,3],[14,1,14,3],[17,1,17,3],[18,1,18,3]]}
[null,"VURDERINGSSKJEMA for sentralt gitt skriftlig eksamen i MAT1015 Matematikk 2P                           ",null,null,null,null,null,null,null,null,null,null,null,null,null,null,null,null,null,null,null,null,null,null,null,"Våren 2015"]
[]
[null,"Fagkode:","MAT1015",null,"Fagnavn:",null,"Matematikk 2P",null,null,null,"Skole:",null,null,null,null,null,null,null,"Gruppe:",null,null,null,null,null,"Sensor:"]
[]
[null,"Kand.nr:","Del 1","Oppgave",1,2,"3a","3b","4a","4b","5a","5b","6a","6b","6c","7a","7b","7c",8,null,null,null,null,null,null,null,null,"SUM \nDEL 1"]
[null,null,null,"Poeng",2,1,1,1,1,1,1,1,2,2,2,2,2,2,3,null,null,null,null,null,null,null,null,{"$f":"SUM(E6:S6)","v":24},"TOTALT"]
[null,null,null,"Sensors\npoeng",null,null,null,null,null,null,null,null,null,null,null,null,null,null,null,null,null,null,null,null,null,null,null,{"$f":"SUM(E7:S7)","v":0},{"$f":"AB7+AB10","v":0}]
[null,null,"Del 2","Oppgave",1,"2a","2b","2c","3a","3b","4a","4b","4c","4d","5a","5b","5c","5d","6a","6b","6c","7a","7b","7c",null,null,null,"SUM \nDEL 2","AV"]
[null,null,null,"Poeng",4,2,1,1,2,1,1,2,2,2,2,1,1,2,2,2,2,2,2,2,null,null,null,{"$f":"SUM(E9:X9)","v":36},{"$f":"AB6+AB9","v":60}]
[null,null,null,"Sensors\npoeng",null,null,null,null,null,null,null,null,null,null,null,null,null,null,null,null,null,null,null,null,null,null,null,{"$f":"SUM(E10:X10)","v":0}]
[null,"SAMLET VURDERING (Jfr. Eksamensveiledning 2015 med kjennetegn på måloppnåelse)"]
[null,"Kompetanse",null,null,2,"3/4","5/6","Kommentarer:"]
[null,"Begreper/ferdigheter"]
[null,"Problemløsning"]
[null,"Kommunikasjon"]
[]
[null,"Karakterforslag"]
[null,"Eget karakterforslag"]
[null,"Medsensors forslag"]
[null,"Endelig karakter"]

{"sheet":"K30","index":30,"n_rows":20,"n_cols":29,"rows_kept":20,"cut":false,"hidden":false,"merged":[[0,1,0,24],[0,25,0,28],[4,2,6,2],[11,1,11,3],[12,1,12,3],[12,7,19,28],[13,1,13,3],[14,1,14,3],[17,1,17,3],[18,1,18,3]]}
[null,"VURDERINGSSKJEMA for sentralt gitt skriftlig eksamen i MAT1015 Matematikk 2P                           ",null,null,null,null,null,null,null,null,null,null,null,null,null,null,null,null,null,null,null,null,null,null,null,"Våren 2015"]
[]
[null,"Fagkode:","MAT1015",null,"Fagnavn:",null,"Matematikk 2P",null,null,null,"Skole:",null,null,null,null,null,null,null,"Gruppe:",null,null,null,null,null,"Sensor:"]
[]
[null,"Kand.nr:","Del 1","Oppgave",1,2,"3a","3b","4a","4b","5a","5b","6a","6b","6c","7a","7b","7c",8,null,null,null,null,null,null,null,null,"SUM \nDEL 1"]
[null,null,null,"Poeng",2,1,1,1,1,1,1,1,2,2,2,2,2,2,3,null,null,null,null,null,null,null,null,{"$f":"SUM(E6:S6)","v":24},"TOTALT"]
[null,null,null,"Sensors\npoeng",null,null,null,null,null,null,null,null,null,null,null,null,null,null,null,null,null,null,null,null,null,null,null,{"$f":"SUM(E7:S7)","v":0},{"$f":"AB7+AB10","v":0}]
[null,null,"Del 2","Oppgave",1,"2a","2b","2c","3a","3b","4a","4b","4c","4d","5a","5b","5c","5d","6a","6b","6c","7a","7b","7c",null,null,null,"SUM \nDEL 2","AV"]
[null,null,null,"Poeng",4,2,1,1,2,1,1,2,2,2,2,1,1,2,2,2,2,2,2,2,null,null,null,{"$f":"SUM(E9:X9)","v":36},{"$f":"AB6+AB9","v":60}]
[null,null,null,"Sensors\npoeng",null,null,null,null,null,null,null,null,null,null,null,null,null,null,null,null,null,null,null,null,null,null,null,{"$f":"SUM(E10:X10)","v":0}]
[null,"SAMLET VURDERING (Jfr. Eksamensveiledning 2015 med kjennetegn på måloppnåelse)"]
[null,"Kompetanse",null,null,2,"3/4","5/6","Kommentarer:"]
[null,"Begreper/ferdigheter"]
[null,"Problemløsning"]
[null,"Kommunikasjon"]
[]
[null,"Karakterforslag"]
[null,"Eget karakterforslag"]
[null,"Medsensors forslag"]
[null,"Endelig karakter"]